{"text_format":"1","workbook":"xlsx","n_sheets":5,"sheets":["Intro","Case study Finder","Sectors & Enablers","CS database","References"],"not_rendered":{"charts":0,"images":9,"macros":1,"external_links":0,"defined_names":2,"comments":0,"pivot_tables":0},"unopened":[],"bounds":{"document_bytes":16777216,"sheet_cells":100000,"rows_first":2000,"rows_last":500,"rows_between":2000,"halvings":0,"cell_chars":16384,"cell_head_chars":4096},"cells_cut":0,"cells_raw":0,"read":"whole","date_system":"1900"}

{"sheet":"Intro","index":0,"n_rows":41,"n_cols":2,"rows_kept":41,"cut":false,"hidden":false,"merged":[[0,0,0,14],[40,0,40,14]]}
["Case Study Finder Tool V 1.0"]
[]
[]
[]
[]
[]
[]
[]
[]
[]
[]
[]
[]
[]
[]
[]
[]
[]
[]
[]
[]
[]
[]
[]
["Instructions to use the tool:"]
["Open the Tool"]
[" \u009f","When you open the file, ensure you click \"Enable Macros\" to allow the tool to function properly."]
[" \u009f","Navigate to the \"Case Study Finder\" tab if not already visible."]
[]
["Search by Sector or Enabler"]
[" \u009f","Use the dropdowns in the \"Case Study Finder\" tab to specify your search criteria."]
[" \u009f","Select 'All' from both Sector and Enabler dropdown lists to show all the case studies."]
[" \u009f","Select 'All' in Enabler field (cell G8) to display all case studies related to the selected Sector."]
[" \u009f","Select 'All' in the Sector field (cell G6) to display all case studies associated with the selected Enabler."]
[" \u009f","To narrow down the result select both a Sector and an Enabler, the tool will display only case studies that match the Sector and Enabler."]
[" \u009f","If both the Sector and Enabler fields are left blank, the tool will not perform a search."]
[]
[]
[]
[]
["This project is funded under the EPA Ireland Research Programme 2021-2030 and co-funded by the Department of Agriculture, Food and Marine. The EPA Research Programme is a Government of Ireland initiative funded by the Department of the Environment, Climate and Communications."]

{"sheet":"Case study Finder","index":1,"n_rows":32,"n_cols":9,"rows_kept":32,"cut":false,"hidden":false,"merged":[[1,4,2,9]]}
[]
[null,null,null,null,"Case Study Finder "]
[]
[]
[]
[null,null,null,null,"Select the Sector ",null,"Others",null,"(Select a sector from the dropdown list)"]
[]
[null,null,null,null,"Select Enabler ",null,"All",null,"(Select an enabler from the dropdown list)"]
[]
[]
[]
[]
[]
[]
["Case study list:"]
[]
[1,"Design of flood defense work - Ireland"]
[2,"Menstrual protection products for students in a precarious financial situation - Paris-Saclay University"]
[3,"Constrction of a energy efficient park - Italy"]
[4,"Renewable Heating Systems for Schools - Norway"]
[5,"Purchasing materials for events in a sustainable way - Netherlands"]
[6,"Procurement of of logistical services (seminars and publicity) - Bulgaria"]
[7,"Sustainable procurement of wood products - Spain"]
[8,"Provision of comprehensive care for homeless people in Valladolid - Spain"]
[9,"Developing a monitoring system for GPP in Rome - Italy"]
[10,"InDemand, a new demand-driven cocreation model that helps to procure innovation in public organizations - Spain"]
[11,"The Procurement of Fire Extinguishers by Central Ministries in Japan"]
[12,"How Kaiser Permanente keeps 70M square feet of flooring free of toxic chemicals - USA"]
[13,"Award system for GPP practinioners and departments - USA"]
[14,"City of Ottawa Takes a Step on Social Value with Crossing Guard Services - Canada"]
[15,"City of Saskatoon Manages 50% of the Water with 100% of the Fun at Local Waterpark - Canadda"]
[16,"City of Winnipeg Fights Homelessness with Local Social Enterprise - Canada"]

{"sheet":"Sectors & Enablers","index":2,"n_rows":44,"n_cols":4,"rows_kept":44,"cut":false,"hidden":false,"merged":[]}
[null,"Sectors",null,"Enablers"]
[1,"All",null,"All"]
[2,"Buildings",null,"Appraisal"]
[3,"Cleaning products and services",null,"Auditing"]
[4,"Combined heat & power",null,"Awareness"]
[5,"Copying and graphic paper",null,"Centralised procurement"]
[6,"Electricity",null,"Collaboration"]
[7,"Food and catering service",null,"Communication"]
[8,"Furniture",null,"Concurrent Design"]
[9,"Gardening products and services",null,"Dissemination"]
[10,"Indoor lighting",null,"E Procurement "]
[11,"Implementing GPP policies",null,"Eco Labels"]
[12,"Office design/construction management",null,"Energy efficiency enhancement"]
[13,"Office IT equipment",null,"Energy performance services"]
[14,"Office supplies",null,"Environmental Indicators"]
[15,"Printing products and services",null,"E platforms"]
[16,"Street lighting and traffic signals",null,"Expert involvement"]
[17,"Road design,construction & maintenance",null,"Feedbacks"]
[18,"Textiles",null,"GPP database "]
[19,"Transport",null,"GPP Tools"]
[20,"Waste management and collection",null,"Guidelines"]
[21,"Waste water infrastructures",null,"Incentivisation"]
[22,"Others",null,"Innovative approach"]
[null,null,null,"Joint Framework"]
[null,null,null,"Knowledge transfer"]
[null,null,null,"Legal mandate"]
[null,null,null,"Long term contracts"]
[null,null,null,"Low organizational resistance"]
[null,null,null,"Supportive management"]
[null,null,null,"Market Approach"]
[null,null,null,"Market readiness"]
[null,null,null,"Monitoring"]
[null,null,null,"Normative"]
[null,null,null,"Partnerships"]
[null,null,null,"Pilot Project"]
[null,null,null,"Policy"]
[null,null,null,"Political support"]
[null,null,null,"Previous expertise"]
[null,null,null,"Promotions"]
[null,null,null,"Social criteria "]
[null,null,null,"Supply chain"]
[null,null,null,"Standardisation"]
[null,null,null,"Technology Transformation"]
[null,null,null,"Training"]

{"sheet":"CS database","index":3,"n_rows":241,"n_cols":6,"rows_kept":241,"cut":false,"hidden":true,"merged":[]}
["No","Case study","Link","Hyperlink","Sector","Enabler"]
["L-1",null,null,"Environmentally friendly large executive vehicles , Ireland","Transport","Market approach"]
["L-2",null,null,"Sustainable waste management services, Ireland","Waste management and collection","Policy"]
["L-3",null,null,"Sustainable catering services, Ireland","Food and catering service","Market approach"]
["L-4",null,null,"Efficient IT equipment for Mynooth, Ireland","Office IT equipment","Office IT equipment"]
["L-5",null,null,"Changing street light by LED, Ireland","Street lighting and traffic signals","Street lighting and traffic signals"]
["L-6",null,null,"Social Housing energy Upgrade,Ireland","Buildings","Energy efficiency ehancement"]
["L-7",null,"https://oceanpublishing.ie/council-review/wp-content/uploads/sites/3/2019/01/Green-Public-Procurement-2.pdf","Design of flood defense work - Ireland","Others","Concurrent Design"]
["L-8",null,"https://circabc.europa.eu/ui/group/44278090-3fae-4515-bcc2-44fd57c1d0d1/library/3b692f57-3094-4766-97b1-275cacac631a/details","Recycling of the used mattress - Ireland","Furniture","Promotions"]
["L-9",null,null,"Timber need to be from Legal mandate and sustainable sources - Ireland","Furniture","Legal mandate"]
["L-10",null,null,"Electricity supplied is from 100% renewable resources - Ireland","Electricity","GPP criteria"]
["L-11",null,null,"Procurement of solar powered, compacting litter bins","Waste management and collection","Innovative approach"]
["L12","Cork County Council’s Pilot Project on Green Public Procurement in Roads Maintenance","https://nuigalwayie-my.sharepoint.com/:b:/g/personal/0131004s_universityofgalway_ie/EdZsHZeCnCFKvTl2a0NxIMIBwGfyxk2Ssb8mSGdzRxYHOA?e=uka7xZ",{"$f":"HYPERLINK(C13,B13)","v":"Cork County Council’s Pilot Project on Green Public Procurement in Roads Maintenance"},"Road design,construction & maintenance","Market approach, Collaboration"]
["L13","Environmental friendly uniform for the staff - Ireland","https://nuigalwayie-my.sharepoint.com/:b:/g/personal/0131004s_universityofgalway_ie/EWsE51E45-pDrpix1edMeUwB0yZv7G4PsMnlx1bKLacbvA?e=F9WIK6",{"$f":"HYPERLINK(C14,B14)","v":"Environmental friendly uniform for the staff - Ireland"},"Textiles","Market approach"]
["L14","Cleaning of vehicles of Bus Eireann - Ireland","https://nuigalwayie-my.sharepoint.com/:b:/g/personal/0131004s_universityofgalway_ie/EWsE51E45-pDrpix1edMeUwB0yZv7G4PsMnlx1bKLacbvA?e=F9WIK6","Cleaning of vehicles of Bus Eireann - Ireland","Cleaning products and services","Policy,Training"]
["L15","Indoor lighting at EPA head quarters - Ireland","https://nuigalwayie-my.sharepoint.com/:b:/g/personal/0131004s_universityofgalway_ie/EXWBBPR4HSxFhpnXjbZ2xJsBQRk6eHPzkBXv_W38NfRGyQ?e=UUuqgL","Indoor lighting at EPA head quarters - Ireland","Indoor lighting","Technology transformation"]
["L16","Catering and hospitality - Ireland","https://nuigalwayie-my.sharepoint.com/:b:/g/personal/0131004s_universityofgalway_ie/EXWBBPR4HSxFhpnXjbZ2xJsBQRk6eHPzkBXv_W38NfRGyQ?e=UUuqgL","Catering and hospitality - Ireland","Food and catering service","Collaboration"]
["L17","Poor response to the tender competition  - Ireland","https://nuigalwayie-my.sharepoint.com/:b:/g/personal/0131004s_universityofgalway_ie/EQU8ct7ZdIdIrPuJH8sbgIcB7Zz2jE22PVnnKUJ3tAwPaQ?e=7ecUuW","Poor response to the tender competition  - Ireland","Copying and graphic paper","Market approach"]
["L18","Introducing new draft national criteria on furnitureand related services - Ireland","https://nuigalwayie-my.sharepoint.com/:b:/g/personal/0131004s_universityofgalway_ie/EfdGO_-Pjs9OiBDLZCyOMFEBG1j3H57yaZScKqy8bU-B7g?e=4eA3LY","Introducing new draft national criteria on furnitureand related services - Ireland","Implementing GPP policies","GPP Criteria"]
["L-21","Building FOCAS research institute - Ireland","https://lifelevels.eu/wp-content/uploads/2022/03/Life-Levels-Best-Practice-Guide-GPP_FINAL_compressed-1.pdf",{"$f":"HYPERLINK(C20,B20)","v":"Building FOCAS research institute - Ireland"},"Textiles","GPP Tools"]
["L-22","Demonstarte clear GPP government focus - Ireland","https://projects2014-2020.interregeurope.eu/fileadmin/user_upload/tx_tevprojects/library/file_1584706237.pdf",{"$f":"HYPERLINK(C21,B21)","v":"Demonstarte clear GPP government focus - Ireland"},"Implementing GPP policies","GPP tools, Training, Partnershipss"]
["EU-1","Collection, transportation and disposal of non-hazardous hospital waste in Emilia Romagna ","https://www.interregeurope.eu/good-practices/61-collection-transportation-and-disposal-of-hospital-waste-in-emilia-romagna-italy",{"$f":"HYPERLINK(C22,B22)","v":"Collection, transportation and disposal of non-hazardous hospital waste in Emilia Romagna "},"Waste management and collection","Expert involvement "]
["EU-2","Procurement of Electricity Supply - Barcelona city council","https://www.interregeurope.eu/good-practices/procurement-of-electricity-supply-barcelona-city-council",{"$f":"HYPERLINK(C23,B23)","v":"Procurement of Electricity Supply - Barcelona city council"},"Electricity","Technology transformation"]
["EU-3","Street lighting renovation in Preiļi City","https://www.interregeurope.eu/good-practices/the-street-lightning-renovation-in-the-preili-city","Street lighting renovation in Preiļi City","Street lighting and traffic signals","Low organizational resistance"]
["EU-4","Sustainable printing system services in Veneto ","https://www.interregeurope.eu/good-practices/sustainable-printing-system-services-in-veneto-italy","Sustainable printing system services in Veneto ","Printing products and services","Expert involvement "]
["EU-5","Energy efficiency solutions for educational buildings - Germany","https://bruksela.lodzkie.pl/wp-content/uploads/2019/08/Good-Practice-Guide-on-successful-GPP-cases.pdf","Energy efficiency solutions for educational buildings - Germany","Buildings","Innovative approach"]
["EU-6","Improving housing buildings’ energy efficiency in Liepaja ","https://www.interregeurope.eu/good-practices/energy-efficiency-improvement-measures-renovation-in-apartments-house-klaipeda-street-88-liepaja","Improving housing buildings’ energy efficiency in Liepaja ","Buildings","Energy efficiency ehancement"]
["EU-7","Sustainable in-city transport in Stara Zagora - Bulgaria","https://www.interregeurope.eu/good-practices/sustainable-in-city-transport-in-stara-zagora-bulgaria","Sustainable in-city transport in Stara Zagora - Bulgaria","Transport","Long term contracts, Expert involvement "]
["EU-8","Refurbishing the ex-INPS building In Genoa ","https://www.interregeurope.eu/good-practices/refurbishing-the-ex-inps-building-in-genoa-italy","Refurbishing the ex-INPS building In Genoa ","Buildings","Energy efficiency ehancement"]
["EU-9","Nearly zero energy primary school in Pembroke - Malta","https://circabc.europa.eu/ui/group/44278090-3fae-4515-bcc2-44fd57c1d0d1/library/563e0d28-4e88-41ca-904d-80a1600b3d57/details","Nearly zero energy primary school in Pembroke - Malta","Buildings","Energy efficiency ehancement"]
["EU-10","An automated lighting system for the Thracian University - Bulgaria","https://bruksela.lodzkie.pl/wp-content/uploads/2019/08/Good-Practice-Guide-on-successful-GPP-cases.pdf","An automated lighting system for the Thracian University - Bulgaria","Indoor lighting","Energy efficiency ehancement, Technology transformation"]
["EU-11","Energy performance services for “DE NEKKER” sports facilities ","https://www.interregeurope.eu/good-practices/gpp-of-energy-performance-services-and-maintenance-of-sports-complex","Energy performance services for “DE NEKKER” sports facilities ","Buildings","Energy performance services"]
["EU-12","Procuring recycled paper through an environmental management system  - Greece","https://projects2014-2020.interregeurope.eu/fileadmin/user_upload/tx_tevprojects/library/file_1560173600.pdf","Procuring recycled paper through an environmental management system  - Greece","Copying and graphic paper","Collaboration, Low organizational resistance"]
["EU-13"," Energy efficient street lightning in Nicosia’s villages","https://projects2014-2020.interregeurope.eu/fileadmin/user_upload/tx_tevprojects/library/file_1560173600.pdf"," Energy efficient street lightning in Nicosia’s villages","Street lighting and traffic signals","Market approach"]
["EU-14","Sustainable waste management is Gozo -Malta","https://projects2014-2020.interregeurope.eu/fileadmin/user_upload/tx_tevprojects/library/file_1560173600.pdf","Sustainable waste management is Gozo -Malta","Waste management and collection","Monitoring"]
["EU-15","Lighting as a service in Kortrijk ","https://projects2014-2020.interregeurope.eu/fileadmin/user_upload/tx_tevprojects/library/file_1560173600.pdf","Lighting as a service in Kortrijk ","Indoor lighting","Collaboration, Long term contracts, Expert involvement"]
["EU-16","Energy performance contracting for efficient outdoor lighting -Spain","https://projects2014-2020.interregeurope.eu/fileadmin/user_upload/tx_tevprojects/library/file_1560173600.pdf","Energy performance contracting for efficient outdoor lighting -Spain","Street lighting and traffic signals","Training, Energy efficiency improvement, Awareness"]
["EU-17","Renovating the VIP lodges in Atlas Arena - Poland","https://projects2014-2020.interregeurope.eu/fileadmin/user_upload/tx_tevprojects/library/file_1560173600.pdf","Renovating the VIP lodges in Atlas Arena - Poland","Buildings","GPP Tools"]
["EU-18","Catering Services for the University of Cagliari - Italy","https://sustainable-procurement.org/fileadmin/templates/sp_platform/lib/sp_platform_resources//tools/push_resource_file.php?uid=77d37149","Catering Services for the University of Cagliari - Italy","Food and catering service","Collaboration, Monitoring"]
["EU-19","Office supplies for the Province of Antwerp - Belgium","https://www.interregeurope.eu/good-practices/gpp-of-office-supplies","Office supplies for the Province of Antwerp - Belgium","Office supplies","Low organizational resistance, Long term contracts, Availability of ecoproduts"]
["EU-20","Paper for the Province of Antwerp - Belgium","https://www.interregeurope.eu/good-practices/gpp-of-office-paper","Paper for the Province of Antwerp - Belgium","Printing products and services","Auditing, Availability of ecoproducts"]
["EU-29","Including green criteria for window cleaning services - Denmark","https://green-business.ec.europa.eu/green-public-procurement/good-practice-library/including-green-criteria-window-cleaning-services_en","Including green criteria for window cleaning services - Denmark","Cleaning products and services","Market approach, Supportive management"]
["EU-30","Sustainable food in city Malmo - Sweden","https://malmo.se/Welcome-to-Malmo/Sustainable-Malmo/Sustainable-Lifestyle/Sustainable-food-in-Malmo.html","Sustainable food in city Malmo - Sweden","Food and catering service","Training"]
["EU-31","Promoting responsible purchasing in Nantes - France","https://circabc.europa.eu/ui/group/44278090-3fae-4515-bcc2-44fd57c1d0d1/library/34d26e75-4ed1-44cc-aa8c-5d7b0e337958/details",{"$f":"HYPERLINK(C44,B44)","v":"Promoting responsible purchasing in Nantes - France"},"Implementing GPP policies","Policy"]
["EU-33","Process for the systematic incorporation of gender equality clauses in the contracts of the Provincial Council of Gipuzkoa- Spain","https://circabc.europa.eu/ui/group/44278090-3fae-4515-bcc2-44fd57c1d0d1/library/a756a33a-4ab3-45c1-856b-2503291517bc/details","Process for the systematic incorporation of gender equality clauses in the contracts of the Provincial Council of Gipuzkoa- Spain","Implementing GPP policies","Policy"]
["EU-35","Development of new policy framework - Italy","https://circabc.europa.eu/ui/group/44278090-3fae-4515-bcc2-44fd57c1d0d1/library/0fe050c9-6482-4c9c-9891-9bbbef9dbb84/details","Development of new policy framework - Italy","Implementing GPP policies","Policy"]
["EU-37","Vienna’s Sustainable New Hospital - Austria","https://circabc.europa.eu/ui/group/44278090-3fae-4515-bcc2-44fd57c1d0d1/library/0a681cac-8127-4b6d-9768-5e24638daccf/details",{"$f":"HYPERLINK(C47,B47)","v":"Vienna’s Sustainable New Hospital - Austria"},"Buildings","Trainings"]
["EU-38","Organising GPP through an EMS - Greece","https://circabc.europa.eu/ui/group/44278090-3fae-4515-bcc2-44fd57c1d0d1/library/f979d634-fd20-4206-bc3c-8ae381dcfee6/details","Organising GPP through an EMS - Greece","Implementing GPP policies","Market approach"]
["EU-39","Lithuania’s central purchasing body introduces GPP - Lithuania","https://circabc.europa.eu/ui/group/44278090-3fae-4515-bcc2-44fd57c1d0d1/library/0de637c2-b896-4dac-b27a-a82c8fa51b98/details","Lithuania’s central purchasing body introduces GPP - Lithuania","Implementing GPP policies","Policy"]
["EU-40","Energy efficient, innovative LED bulb replacement - Denmark","https://sustainable-procurement.org/resource-centre?c=search&uid=a3ef62a5","Energy efficient, innovative LED bulb replacement - Denmark","Indoor lighting","Market approach"]
["EU-41","Disposal of bio- based apron for Skåne’s healthcare sector -Sweden","https://www.biobasedconsultancy.com/uploads/files/InnProBio_Goodpracticecase_Skane.pdf","Disposal of bio- based apron for Skåne’s healthcare sector -Sweden","Waste management and collection","Market approach"]
["EU-42","Environmentally-friendly office IT equipment in Stockholm - Sweden","https://sustainable-procurement.org/fileadmin/templates/sp_platform/lib/sp_platform_resources//tools/push_resource_file.php?uid=714a2195","Environmentally-friendly office IT equipment in Stockholm - Sweden","Office IT equipment","GPP tools"]
["EU-43","Clean Streets in Barcelona - Spain","https://circabc.europa.eu/ui/group/44278090-3fae-4515-bcc2-44fd57c1d0d1/library/0ec64279-35b9-417f-816b-adc33636b838/details","Clean Streets in Barcelona - Spain","Waste management and collection","Awareness "]
["EU-44","Sustainable city logistics in London - UK","https://circabc.europa.eu/ui/group/44278090-3fae-4515-bcc2-44fd57c1d0d1/library/a0c60270-ae1e-40e9-bfc3-78ed3807b0a3/details","Sustainable city logistics in London - UK","Transport","Innovative approach"]
["EU-45","Upskilling and motivate the kitchen staff on organic foods - Denmark","https://eurocities.eu/stories/the-secrets-to-food-procurement/","Upskilling and motivate the kitchen staff on organic foods - Denmark","Food and catering service","Training, Feedback, GPP tools"]
["EU-46","Menstrual protection products for students in a precarious financial situation - Paris-Saclay University","https://green-business.ec.europa.eu/green-public-procurement/good-practice-library/menstrual-protection-products-students-precarious-financial-situation_en","Menstrual protection products for students in a precarious financial situation - Paris-Saclay University","Others","Monitoring"]
["EU-47","Constrction of a energy efficient park - Italy","https://www.espon.eu/sites/default/files/attachments/Policy%20Brief%20Reuse%20of%20spaces%20and%20buildings.pdf","Constrction of a energy efficient park - Italy","Others","Guidelines "]
["EU-48","Cleaning products for schools -France","https://green-business.ec.europa.eu/green-public-procurement/good-practice-library/menstrual-protection-products-students-precarious-financial-situation_en","Cleaning products for schools -France","Cleaning products and services","Monitoring"]
["EU-49","Use of official Eco labels for cleaning products- Denmark","https://circabc.europa.eu/ui/group/44278090-3fae-4515-bcc2-44fd57c1d0d1/library/d830a621-965d-45fc-9519-089f0fdc34ab/details","Use of official Eco labels for cleaning products- Denmark","Cleaning products and services","Eco labelss"]
["EU-50","Environmentally-friendly cleaning services in Reykjavík - Iceland","https://circabc.europa.eu/ui/group/44278090-3fae-4515-bcc2-44fd57c1d0d1/library/e5f01c7a-1fa4-4e04-a700-e84e031811ff/details","Environmentally-friendly cleaning services in Reykjavík - Iceland","Cleaning products and services","Collaboration, Expert involvement "]
["EU-51","Framework contract for the supply of cleaning products and services in Greater Porto - Portugal","https://circabc.europa.eu/ui/group/44278090-3fae-4515-bcc2-44fd57c1d0d1/library/d0afcba3-e4c4-4d1f-bd71-e0664945993b/details","Framework contract for the supply of cleaning products and services in Greater Porto - Portugal","Cleaning products and services","Market approach"]
["EU-52","Informal environmental management system - Italy","https://circabc.europa.eu/ui/group/44278090-3fae-4515-bcc2-44fd57c1d0d1/library/5bf04f4e-9ad2-4472-ac3a-23dc9cd35b0c/details","Informal environmental management system - Italy","Cleaning products and services","E platforms, Monitoring"]
["EU-53","Green cleaning services in Denmark","https://circabc.europa.eu/ui/group/44278090-3fae-4515-bcc2-44fd57c1d0d1/library/fadfa60c-85b5-4806-8e5f-0924a0536247/details","Green cleaning services in Denmark","Cleaning products and services","Joint framework"]
["EU-54","Green Procurement of cleaning products in city of Glent - Belgium","https://circabc.europa.eu/ui/group/44278090-3fae-4515-bcc2-44fd57c1d0d1/library/87f5296f-e425-48b5-8dff-776f4050d2a2/details","Green Procurement of cleaning products in city of Glent - Belgium","Cleaning products and services","Innovative approach, Centralized procurement, Collaboration"]
["EU-55","Intermunicipal Waste Management of Greater Porto -Portugal","https://circabc.europa.eu/ui/group/44278090-3fae-4515-bcc2-44fd57c1d0d1/library/c5c02e40-c1f9-4a98-b7c2-60f57eaba90c/details","Intermunicipal Waste Management of Greater Porto -Portugal","Cleaning products and services","Collaboration, Monitoring, Market approach"]
["EU-56","Introducing green criteria for contracting cleaning services in Romania","https://circabc.europa.eu/ui/group/44278090-3fae-4515-bcc2-44fd57c1d0d1/library/d69cfaa9-70d3-421a-a497-e3821b6b941d/details","Introducing green criteria for contracting cleaning services in Romania","Cleaning products and services","GPP tools"]
["EU-57","Procuring quality cleaning services which meet sustainability requirements - Spain","https://circabc.europa.eu/ui/group/44278090-3fae-4515-bcc2-44fd57c1d0d1/library/5cc46bbd-b385-48a2-bc6f-05c6744c5fec/details","Procuring quality cleaning services which meet sustainability requirements - Spain","Cleaning products and services","Joint framework"]
["EU-58","Provision of Cleaning Products & Services - Luxembourg","https://circabc.europa.eu/ui/group/44278090-3fae-4515-bcc2-44fd57c1d0d1/library/1b5cd660-802e-405a-805b-ee1120ee6363/details","Provision of Cleaning Products & Services - Luxembourg","Cleaning products and services","Collaboration, Monitoring"]
["EU-59","Purchasing non-hazardous disinfectants - Austria","https://circabc.europa.eu/ui/group/44278090-3fae-4515-bcc2-44fd57c1d0d1/library/8eb39594-4e75-44e5-9d08-171415e7cc9f/details","Purchasing non-hazardous disinfectants - Austria","Cleaning products and services","GPP Tools, E platforms"]
["EU-60","Sustainable cleaning services and associated services - France","https://circabc.europa.eu/ui/group/44278090-3fae-4515-bcc2-44fd57c1d0d1/library/8ef68072-28ea-47e4-b982-35dfaf112986/details","Sustainable cleaning services and associated services - France","Cleaning products and services","Market approach"]
["EU-61","The Estonian Police and Border Guard Board - green cleaning - Estonia","https://circabc.europa.eu/ui/group/44278090-3fae-4515-bcc2-44fd57c1d0d1/library/36a9a6af-e9b8-4e07-a66f-0bf47ff261d2/details","The Estonian Police and Border Guard Board - green cleaning - Estonia","Cleaning products and services","Market approach"]
["EU-62","Using award criteria to purchase ecolabelled cleaning products - Spain","https://circabc.europa.eu/ui/group/44278090-3fae-4515-bcc2-44fd57c1d0d1/library/aaddd75c-f78b-4a96-8ebe-7bc0f434b3b7/details","Using award criteria to purchase ecolabelled cleaning products - Spain","Cleaning products and services","Eco labelss, GPP tools"]
["EU-63","The procurement of sustainable cleaning services - Netherland","https://circabc.europa.eu/ui/group/44278090-3fae-4515-bcc2-44fd57c1d0d1/library/481a4e6c-8c85-4d45-a187-02f491a646f6/details","The procurement of sustainable cleaning services - Netherland","Cleaning products and services","GPP tools"]
["EU-64","Renewable Heating Systems for Schools - Norway"," https://circabc.europa.eu/ui/group/44278090-3fae-4515-bcc2-44fd57c1d0d1/library/76bca29f-8e34-4bfe-994c-f94a2372c8f5/details","Renewable Heating Systems for Schools - Norway","Others","Market approach, Innovative approach"]
["EU-65","Circular procurement for a sustainable learning environment - Denmark","https://circabc.europa.eu/ui/group/44278090-3fae-4515-bcc2-44fd57c1d0d1/library/6209861f-f860-4302-9461-a4b2c93e0498/details","Circular procurement for a sustainable learning environment - Denmark","Furniture","Collaboration, Training"]
["EU-66","Circular Procurement of Furniture for the City Hall of Venlo - Netherland","https://circabc.europa.eu/ui/group/44278090-3fae-4515-bcc2-44fd57c1d0d1/library/d197d7f4-6026-440d-bdf7-070f78efc8ac/details",{"$f":"HYPERLINK(C76,B76)","v":"Circular Procurement of Furniture for the City Hall of Venlo - Netherland"},"Furniture","Training, Market approach, Collaboration"]
["EU-67","Circular Procurement of Furniture for the City of Wageningen - Netherlands","https://circabc.europa.eu/ui/group/44278090-3fae-4515-bcc2-44fd57c1d0d1/library/60950743-bc98-4b3f-ba37-efb019eeae96/details","Circular Procurement of Furniture for the City of Wageningen - Netherlands","Furniture","E platforms, Policy"]
["EU-68","Furniture & white goods for public housing projects - Spain","https://circabc.europa.eu/ui/group/44278090-3fae-4515-bcc2-44fd57c1d0d1/library/d803b8bc-4fba-4899-8d08-39aa23971340/details","Furniture & white goods for public housing projects - Spain","Furniture","GPP tools"]
["EU-69","Furniture framework applying circular economy principles - Sweden","https://circabc.europa.eu/ui/group/44278090-3fae-4515-bcc2-44fd57c1d0d1/library/5ac32a7b-75a1-44e7-84c6-3afaa307a3eb/details","Furniture framework applying circular economy principles - Sweden","Furniture","Training, Market approach, Auditing"]
["EU-70","Green procurement of furniture and fabrics - Sweden","https://circabc.europa.eu/ui/group/44278090-3fae-4515-bcc2-44fd57c1d0d1/library/29794520-a92c-4530-af6f-c661cf96c2b6/details","Green procurement of furniture and fabrics - Sweden","Furniture","Auditing, Training, Collaboration"]
["EU-71","Greening the construction, renovation and design - Spain ","https://circabc.europa.eu/ui/group/44278090-3fae-4515-bcc2-44fd57c1d0d1/library/ea18e22b-2ada-4a11-ac95-56cafc4bbc70/details",{"$f":"HYPERLINK(C81,B81)","v":"Greening the construction, renovation and design - Spain "},"Buildings","Market approach, Training"]
["EU-72","Piloting sustainable school furniture procurement - Latvia","https://circabc.europa.eu/ui/group/44278090-3fae-4515-bcc2-44fd57c1d0d1/library/c457efbe-e179-4b6e-b7ca-d2357756d18d/details",{"$f":"HYPERLINK(C82,B82)","v":"Piloting sustainable school furniture procurement - Latvia"},"Furniture","Market approach, Collaboration"]
["EU-73","Procurement of green office furniture by Basque Government-Spain","https://circabc.europa.eu/ui/group/44278090-3fae-4515-bcc2-44fd57c1d0d1/library/5fa0c22d-78f8-4680-b42e-3a85d84e190d/details","Procurement of green office furniture by Basque Government-Spain","Furniture","Market approach, Collaboration, GPP tools"]
["EU-74","Procuring sustainable forest products-Spain","https://circabc.europa.eu/ui/group/44278090-3fae-4515-bcc2-44fd57c1d0d1/library/e0294868-e620-4104-b4f8-b7f5a5b9a68a/details","Procuring sustainable forest products-Spain","Furniture","Environmental indicators"]
["EU-75","Procuring sustainable furniture in Denmark","https://circabc.europa.eu/ui/group/44278090-3fae-4515-bcc2-44fd57c1d0d1/library/9d57035b-5d76-4015-b923-5ab5d1e5afa4/details","Procuring sustainable furniture in Denmark","Furniture","Centralized procurement, Collaboration"]
["EU-76","Promoting sustainable development while purchasing office chairs - EC Belgium","https://circabc.europa.eu/ui/group/44278090-3fae-4515-bcc2-44fd57c1d0d1/library/359b2157-4e29-4132-8ff8-ddbc99afc7b4/details","Promoting sustainable development while purchasing office chairs - EC Belgium","Furniture","Monitoring, Environmental indicators"]
["EU-77","Reusing and refurbishing furniture in a new office -UK","https://circabc.europa.eu/ui/group/44278090-3fae-4515-bcc2-44fd57c1d0d1/library/0b26b633-c577-4ae4-928b-7c0366ad9ec4/details","Reusing and refurbishing furniture in a new office -UK","Furniture","Innovative approach, Market approach"]
["EU-78","Introducing circular economy procurement to road construction - Finland","https://circabc.europa.eu/ui/group/44278090-3fae-4515-bcc2-44fd57c1d0d1/library/312980ee-1be8-49cb-8fa4-b167fbdb670c/details","Introducing circular economy procurement to road construction - Finland","Road design,construction & maintenance","Collaboration, Policy, Feedback, Market approach"]
["EU-79","Recycled asphalt used for road resurfacing - Germany","https://circabc.europa.eu/ui/group/44278090-3fae-4515-bcc2-44fd57c1d0d1/library/ea328d03-cf9a-448c-9e1e-2dbef2c5e923/details","Recycled asphalt used for road resurfacing - Germany","Road design,construction & maintenance","Policy, Legal mandate, Innovative approach"]
["EU-80","Reducing urban flood risk through innovation procurement- Denmark","https://circabc.europa.eu/ui/group/44278090-3fae-4515-bcc2-44fd57c1d0d1/library/98525d4b-8e04-4f66-a6ee-d83e7a66d0c2/details","Reducing urban flood risk through innovation procurement- Denmark","Road design,construction & maintenance","Partnerships, Market approach"]
["EU-81","Sustainable reconstruction of the A6 motorway - Netherlands","https://circabc.europa.eu/ui/group/44278090-3fae-4515-bcc2-44fd57c1d0d1/library/b1bc9273-a4b8-44b4-8a64-1c776d04a8db/details","Sustainable reconstruction of the A6 motorway - Netherlands","Road design,construction & maintenance","Innovative approach"]
["EU-82","Procuring university jumpers made from responsible, organic cotton - Czech Republic","https://circabc.europa.eu/ui/group/44278090-3fae-4515-bcc2-44fd57c1d0d1/library/e850ee48-6062-4b27-8c34-c2cd727e147b/details","Procuring university jumpers made from responsible, organic cotton - Czech Republic","Textiles","Collaboration"]
["EU-83","Purchasing textiles made from recycled fibres - Netherlands","https://circabc.europa.eu/ui/group/44278090-3fae-4515-bcc2-44fd57c1d0d1/library/e33ceb44-6068-4f3a-9fd6-496c68e4fb71/details","Purchasing textiles made from recycled fibres - Netherlands","Textiles","Market approach, Feedback, Collaboration"]
["EU-84","Reusing workwear in Herning - Denmark","https://circabc.europa.eu/ui/group/44278090-3fae-4515-bcc2-44fd57c1d0d1/library/a98253a8-511e-463c-b471-5693a018f654/details","Reusing workwear in Herning - Denmark","Textiles","Collaboration"]
["EU-85","Sustainable uniforms for the French Navy - France","https://circabc.europa.eu/ui/group/44278090-3fae-4515-bcc2-44fd57c1d0d1/library/5b0ed1f0-17df-4854-b6aa-df0dff482c35/details","Sustainable uniforms for the French Navy - France","Textiles","Feedback"]
["EU-86","Winning the race to reduce packaging in Barcelona - Spain","https://circabc.europa.eu/ui/group/44278090-3fae-4515-bcc2-44fd57c1d0d1/library/8dc6810a-0088-4ccb-816d-15bc6885e3c6/details","Winning the race to reduce packaging in Barcelona - Spain","Textiles","Promotions"]
["EU-87","Gardening, Low environmental impact maintenance contract for city parks – Barcelona","https://circabc.europa.eu/ui/group/44278090-3fae-4515-bcc2-44fd57c1d0d1/library/f8222a78-7e8c-4919-89b8-ae5ec568a52d/details","Gardening, Low environmental impact maintenance contract for city parks – Barcelona","Gardening products and services","Centralized procurement, Monitoring"]
["EU-88","Promoting Biodiversity in Green Urban Areas - France","https://circabc.europa.eu/ui/group/44278090-3fae-4515-bcc2-44fd57c1d0d1/library/8642c5f0-5c05-4166-8c0c-82dc1b4eceac/details","Promoting Biodiversity in Green Urban Areas - France","Gardening products and services","Market approach"]
["EU-89","Reaching social and environmental objectives through maintenance of public green spaces - Spain","https://circabc.europa.eu/ui/group/44278090-3fae-4515-bcc2-44fd57c1d0d1/library/ef586c33-841c-4bfc-a6ed-9b315f8281e9/details","Reaching social and environmental objectives through maintenance of public green spaces - Spain","Gardening products and services","GPP tools, Training"]
["EU-90","‘Oxygen’ project planting 6 million trees - Italy","https://circabc.europa.eu/ui/group/44278090-3fae-4515-bcc2-44fd57c1d0d1/library/5197149d-6ff6-4385-afde-1fa1449e6a8e/details","‘Oxygen’ project planting 6 million trees - Italy","Gardening products and services","Collaboration, Expert involvement, Legal mandate "]
["EU-91","An innovative, efficient combined heat and power (CHP) plant - Finland ","https://circabc.europa.eu/ui/group/44278090-3fae-4515-bcc2-44fd57c1d0d1/library/5f0efc8a-c9c5-4223-b839-214bd5089466/details","An innovative, efficient combined heat and power (CHP) plant - Finland ","Combined heat & power","Technology transformation"]
["EU-92","100% recycled paper for Bulgaria’s Environment Ministry - Bulgaria ","https://circabc.europa.eu/ui/group/44278090-3fae-4515-bcc2-44fd57c1d0d1/library/b80752aa-3696-4173-b684-5b889b5744cd/details","100% recycled paper for Bulgaria’s Environment Ministry - Bulgaria ","Copying and graphic paper","Collaboration, Market approach"]
["EU-93","Centralised procurement of greener office supplies - Hungary","https://circabc.europa.eu/ui/group/44278090-3fae-4515-bcc2-44fd57c1d0d1/library/d7d66e42-7a42-4cf7-87fa-85926b3c2b8e/details","Centralised procurement of greener office supplies - Hungary","Copying and graphic paper","Collaboration"]
["EU-94","Encouraging more sustainable office supplies in Flanders - Belgium","https://circabc.europa.eu/ui/group/44278090-3fae-4515-bcc2-44fd57c1d0d1/library/bea80a33-f616-4dd9-b490-23cd8cb565f7/details","Encouraging more sustainable office supplies in Flanders - Belgium","Office supplies","Collaboration, Market approach, Monitoring"]
["EU-95","Joint procurement of 100% recycled copying paper - Germany","https://circabc.europa.eu/ui/group/44278090-3fae-4515-bcc2-44fd57c1d0d1/library/7069eb5e-e0ce-4a0e-a3ea-e0e931c89c6e/details","Joint procurement of 100% recycled copying paper - Germany","Copying and graphic paper","Training"]
["EU-96","Paper purchasing for Lombardy local governments - Italy","https://circabc.europa.eu/ui/group/44278090-3fae-4515-bcc2-44fd57c1d0d1/library/c083ea25-b8aa-46ff-bd57-159d999e31fe/details","Paper purchasing for Lombardy local governments - Italy","Copying and graphic paper","Market approach, Collaboration"]
["EU-97","Electricity from 100% renewable sources - Finland","https://circabc.europa.eu/ui/group/44278090-3fae-4515-bcc2-44fd57c1d0d1/library/d7e7c893-bff8-40a1-a8d0-2f93c13cd778/details","Electricity from 100% renewable sources - Finland","Electricity","Awareness, supply chain"]
["EU-98","Energy performance and maintenance contracts - Netherlands","https://circabc.europa.eu/ui/group/44278090-3fae-4515-bcc2-44fd57c1d0d1/library/4244269b-38f6-4fff-8879-7a900089aedc/details","Energy performance and maintenance contracts - Netherlands","Electricity","Dissemination, Market approach"]
["EU-99","Green electricity and vehicles - Slovenia","https://circabc.europa.eu/ui/group/44278090-3fae-4515-bcc2-44fd57c1d0d1/library/37bb56d6-28ca-414b-add0-dc66bf03d900/details","Green electricity and vehicles - Slovenia","Electricity","Environmental indicators, Supply chain"]
["EU-100","Green electricity for Bremen’s public buildings - Germany","https://circabc.europa.eu/ui/group/44278090-3fae-4515-bcc2-44fd57c1d0d1/library/a022267e-3312-44ed-8777-6a7f56c3f703/details","Green electricity for Bremen’s public buildings - Germany","Electricity","Market approach, Supply chain"]
["EU-101","Procurement of 100% green electricity in Brandenburg","https://circabc.europa.eu/ui/group/44278090-3fae-4515-bcc2-44fd57c1d0d1/library/df5c4de2-0ee0-4d77-ac77-c1497b73a12e/details","Procurement of 100% green electricity in Brandenburg","Electricity","Supply chain"]
["EU-102","Purchasing materials for events in a sustainable way - Netherlands","https://circabc.europa.eu/ui/group/44278090-3fae-4515-bcc2-44fd57c1d0d1/library/7fd783c6-ade6-436e-b61b-c91c803286a0/details","Purchasing materials for events in a sustainable way - Netherlands","Others","Policy, Legal mandate, Expert involvement"]
["EU-103","Procurement of of logistical services (seminars and publicity) - Bulgaria","https://circabc.europa.eu/ui/group/44278090-3fae-4515-bcc2-44fd57c1d0d1/library/9903f895-3202-4035-b9ed-55a1080bdf6e/details","Procurement of of logistical services (seminars and publicity) - Bulgaria","Others","Knowledge transfer"]
["EU-104","Sustainable procurement of wood products - Spain","https://circabc.europa.eu/ui/group/44278090-3fae-4515-bcc2-44fd57c1d0d1/library/46e39bc5-41db-4fda-9762-8d62be4a3ea5/details","Sustainable procurement of wood products - Spain","Others","Training, Supportive management, Policy"]
["EU-105","Sustainable wood procurement in Cognac - France","https://circabc.europa.eu/ui/group/44278090-3fae-4515-bcc2-44fd57c1d0d1/library/b43cc7ea-2382-4035-80b7-c3e1bcefa76d/details","Sustainable wood procurement in Cognac - France","Furniture","Knowledge transfer"]
["EU-106","Waterschapsbedrijf Limburg - Netherlands","https://circabc.europa.eu/ui/group/44278090-3fae-4515-bcc2-44fd57c1d0d1/library/cbd6d40c-f25d-4eac-9a23-98fafde1de24/details",{"$f":"HYPERLINK(C116,B116)","v":"Waterschapsbedrijf Limburg - Netherlands"},"Waste water infrastructures","Collaboration, Monitoring, Supply chain"]
["EU-107","Turning wastewater into useable resources - Sweden","https://circabc.europa.eu/ui/group/44278090-3fae-4515-bcc2-44fd57c1d0d1/library/175dae88-01e3-46ea-ab77-f9ab837ae3d0/details",{"$f":"HYPERLINK(C117,B117)","v":"Turning wastewater into useable resources - Sweden"},"Waste water infrastructures","Expert involvement, Environmental indicators "]
["EU-108","Procurement of a wastewater recycling system - Austria","https://circabc.europa.eu/ui/group/44278090-3fae-4515-bcc2-44fd57c1d0d1/library/a5da6d56-a9ba-4812-bdeb-cac6305cccb8/details","Procurement of a wastewater recycling system - Austria","Waste water infrastructures","Collaboration"]
["EU-109","Welsh Waste Infrastructure Procurement Programme - UK","https://circabc.europa.eu/ui/group/44278090-3fae-4515-bcc2-44fd57c1d0d1/library/f0935c65-f936-43ff-8a40-da91f9b8c9be/details","Welsh Waste Infrastructure Procurement Programme - UK","Waste water infrastructures","Joint framework, Partnerships"]
["EU-110","Sustainable procurement at the Natural History Museum of London, UK","https://circabc.europa.eu/ui/group/44278090-3fae-4515-bcc2-44fd57c1d0d1/library/3cc6f0b7-ba2f-4c01-9c97-b618e843348c/details","Sustainable procurement at the Natural History Museum of London, UK","Waste water infrastructures","Training"]
["EU-111","Procuring climate-friendly waste collection and treatment services - Norway","https://circabc.europa.eu/ui/group/44278090-3fae-4515-bcc2-44fd57c1d0d1/library/8874dc14-ff8d-45c6-9828-27abfa441eff/details","Procuring climate-friendly waste collection and treatment services - Norway","Waste management and collection","GPP tools"]
["EU-112","Low carbon waste collection services - UK","https://circabc.europa.eu/ui/group/44278090-3fae-4515-bcc2-44fd57c1d0d1/library/fe5ac5af-fd94-4eca-b7e1-c1ff9815381c/details","Low carbon waste collection services - UK","Waste management and collection","Innovative  approach, Market approach"]
["EU-113","Transitioning towards zero emission public transport in the Province of North-Brabant - Netherland","https://circabc.europa.eu/ui/group/44278090-3fae-4515-bcc2-44fd57c1d0d1/library/f60a134a-c360-40f7-8a32-58398bac625c/details","Transitioning towards zero emission public transport in the Province of North-Brabant - Netherland","Transport","Technology transformation"]
["EU-114","Neutral Procurement of a Full-Electric Ferry - Norway","https://circabc.europa.eu/ui/group/44278090-3fae-4515-bcc2-44fd57c1d0d1/library/eca68ef2-0e11-453f-9b56-4466abb2ced7/details","Neutral Procurement of a Full-Electric Ferry - Norway","Transport","Expert involvement"]
["EU-115","Sustainable, customer-oriented transport services - Netherland","https://sustainable-procurement.org/fileadmin/templates/sp_platform/lib/sp_platform_resources//tools/push_resource_file.php?uid=ac2b2877","Sustainable, customer-oriented transport services - Netherland","Transport","Market approach, Collaboration"]
["EU-116","Retrofitting trams for energy efficiency in Craiova- Romania","https://circabc.europa.eu/ui/group/44278090-3fae-4515-bcc2-44fd57c1d0d1/library/fd1ab39c-3742-4bfb-b06d-7bbed4c0fb66/details","Retrofitting trams for energy efficiency in Craiova- Romania","Transport","Technology transformation"]
["EU-117","Reducing food transport emissions through route optimisation and more efficient vehicles - Finland","https://circabc.europa.eu/ui/group/44278090-3fae-4515-bcc2-44fd57c1d0d1/library/2b0be9fe-4636-4e15-8fa0-095ab6996525/details","Reducing food transport emissions through route optimisation and more efficient vehicles - Finland","Transport","Market approach"]
["EU-118","Recovering biogas to power public transport - Finland","https://circabc.europa.eu/ui/group/44278090-3fae-4515-bcc2-44fd57c1d0d1/library/13524389-b34d-464d-ac05-0aee9a17d214/details","Recovering biogas to power public transport - Finland","Transport","Technology transformation, Supply chain"]
["EU-119","Procuring solar vehicle-to-grid (V2G) charging stations for electric vehicles - Spain","https://circabc.europa.eu/ui/group/44278090-3fae-4515-bcc2-44fd57c1d0d1/library/8a2f1f6c-810f-49e0-a94f-f0198c5b4bcf/details","Procuring solar vehicle-to-grid (V2G) charging stations for electric vehicles - Spain","Transport","Technology transformation, Innovative approach"]
["EU-120","Procurement of hybrid electric buses - Romania","https://circabc.europa.eu/ui/group/44278090-3fae-4515-bcc2-44fd57c1d0d1/library/4251c8f8-388b-4270-9d5c-fbc69366a72a/details","Procurement of hybrid electric buses - Romania","Transport","GPP tools, Technology transformation"]
["EU-121","Procurement of electric vehicles for public use in the city of Paris - France","https://sustainable-procurement.org/resource-centre?c=search&p=111","Procurement of electric vehicles for public use in the city of Paris - France","Transport","Partnerships, Innovative approach, Expert involvement"]
["EU-122","Supplying sustainable garments for health professionals - Denmark","https://circabc.europa.eu/ui/group/44278090-3fae-4515-bcc2-44fd57c1d0d1/library/0430ac03-f538-4248-9620-9b17d69bcb90/details","Supplying sustainable garments for health professionals - Denmark","Textiles","Previous expertise"]
["EU-123","Energy efficient lighting on Budapest’s bridges- Hungary","https://circabc.europa.eu/ui/group/44278090-3fae-4515-bcc2-44fd57c1d0d1/library/73d94b12-a545-4d79-98a2-98e1a3ddacf9/details","Energy efficient lighting on Budapest’s bridges- Hungary","Street lighting and traffic signals","Technology transformation"]
["EU-124","Procurement of energy efficient street lighting - Croatia","https://circabc.europa.eu/ui/group/44278090-3fae-4515-bcc2-44fd57c1d0d1/library/87b0147f-5115-48f0-adeb-e7c77f92d9a5/details","Procurement of energy efficient street lighting - Croatia","Street lighting and traffic signals","Technology transformation, Market readiness"]
["EU-125","Resource efficient print and copy management solutions - Italy","https://circabc.europa.eu/ui/group/44278090-3fae-4515-bcc2-44fd57c1d0d1/library/0626db51-7c88-4e6b-bcc1-c2309a39b35f/details","Resource efficient print and copy management solutions - Italy","Copying and graphic paper","Innovative approach"]
["EU-126","Procurement of Reduced Environmental Impact Toners - Italy","https://circabc.europa.eu/ui/group/44278090-3fae-4515-bcc2-44fd57c1d0d1/library/c161549f-f7f0-4763-8114-1cce319772cb/details",{"$f":"HYPERLINK(C136,B195)","v":"Purchasing copy, printing and scanning services in Zurich - Switzerland"},"Copying and graphic paper","Monitoring"]
["EU-127","Leasing low-carbon imaging equipment - Portugal","https://circabc.europa.eu/ui/group/44278090-3fae-4515-bcc2-44fd57c1d0d1/library/a96a6210-b604-4dee-b915-ca1f4fbef647/details","Leasing low-carbon imaging equipment - Portugal","Copying and graphic paper","Market approach"]
["EU-128","Environmental requirements for printed materials - France","https://circabc.europa.eu/ui/group/44278090-3fae-4515-bcc2-44fd57c1d0d1/library/857e460f-125e-4c8b-842d-a6ed26703899/details","Environmental requirements for printed materials - France","Copying and graphic paper","Training"]
["EU-129","Sustainable procurement of office supplies - Belgium","https://circabc.europa.eu/ui/group/44278090-3fae-4515-bcc2-44fd57c1d0d1/library/5c3dbb80-01cc-4f44-9243-82b8d5d04bb6/details","Sustainable procurement of office supplies - Belgium","Office supplies","Awareness, Communication, Market approach"]
["EU-130","Contract for paper with environmental requirements - Slovenia","https://circabc.europa.eu/ui/group/44278090-3fae-4515-bcc2-44fd57c1d0d1/library/abdc14ec-06c6-4d28-8c18-8edf57001719/details",{"$f":"HYPERLINK(C140,B140)","v":"Contract for paper with environmental requirements - Slovenia"},"Office supplies","Joint framework"]
["EU-131","Green stationery supplies for the Brussels-Capital Region - Belgium","https://circabc.europa.eu/ui/group/44278090-3fae-4515-bcc2-44fd57c1d0d1/library/1a57bb1d-d3e5-49df-83de-85c827da5f32/details","Green stationery supplies for the Brussels-Capital Region - Belgium","Office supplies","Monitoring"]
["EU-132","Procurement of Green stationery and paper - UK","https://circabc.europa.eu/ui/group/44278090-3fae-4515-bcc2-44fd57c1d0d1/library/6eaeaed1-9d94-4b36-b115-8ffd6a94cffd/details","Procurement of Green stationery and paper - UK","Office supplies","Policy"]
["EU-133","Framework contract for sustainable office materials based on “Cradle to Cradle” principles - Germany","https://circabc.europa.eu/ui/group/44278090-3fae-4515-bcc2-44fd57c1d0d1/library/edbaf0e6-eaad-4eaf-97ec-a0a4b1495d87/details","Framework contract for sustainable office materials based on “Cradle to Cradle” principles - Germany","Office supplies","Innovative approach,"]
["EU-134","Sustainable purchase and rental of desktop computers and monitors - Estonia","https://circabc.europa.eu/ui/group/44278090-3fae-4515-bcc2-44fd57c1d0d1/library/be19d8f8-661b-401e-a4e2-d898885b4ed5/details","Sustainable purchase and rental of desktop computers and monitors - Estonia","Office IT equipment","E platforms"]
["EU-135","Purchasing Framework for energy efficient client computer systems - UK","https://circabc.europa.eu/ui/group/44278090-3fae-4515-bcc2-44fd57c1d0d1/library/fe09403e-881b-4a45-b479-0f7780c6e291/details","Purchasing Framework for energy efficient client computer systems - UK","Office IT equipment","Market approach"]
["EU-136","Procuring sustainable computers, printers and related services- Italy","https://circabc.europa.eu/ui/group/44278090-3fae-4515-bcc2-44fd57c1d0d1/library/04b6f640-e9e1-453a-b747-6626c19b214e/details","Procuring sustainable computers, printers and related services- Italy","Office IT equipment","Collaboration, Low organizational resistance"]
["EU-137","Procurement of energy and resource efficient desktop computers - Austria","https://circabc.europa.eu/ui/group/44278090-3fae-4515-bcc2-44fd57c1d0d1/library/bdcd8549-162d-4842-9d24-3bdbd9e4f743/details","Procurement of energy and resource efficient desktop computers - Austria","Office IT equipment","Innovative approach, Market approach, Awareness"]
["EU-138","ICT equipment and management services - Italy","https://circabc.europa.eu/ui/group/44278090-3fae-4515-bcc2-44fd57c1d0d1/library/182f7e61-6755-4c28-885c-7f31fee27393/details","ICT equipment and management services - Italy","Office IT equipment","E platforms"]
["EU-139","Framework for green IT equipment - France","https://circabc.europa.eu/ui/group/44278090-3fae-4515-bcc2-44fd57c1d0d1/library/f64ea62d-1adc-4468-ae85-3f5dbb67b98c/details","Framework for green IT equipment - France","Office IT equipment","Auditing"]
["EU-140","Framework contract to purchase thin client computer systems - Germany ","https://circabc.europa.eu/ui/group/44278090-3fae-4515-bcc2-44fd57c1d0d1/library/17a36573-787f-4431-9e31-95bc04df7700/details","Framework contract to purchase thin client computer systems - Germany ","Office IT equipment","Market approach"]
["EU-141","Framework contract for green IT equipment in Gipuzkoa - Spain","https://circabc.europa.eu/ui/group/44278090-3fae-4515-bcc2-44fd57c1d0d1/library/01079bed-4d25-4bd1-8952-ea3e40b591cf/details","Framework contract for green IT equipment in Gipuzkoa - Spain","Office IT equipment","Market approach"]
["EU-142","Refurbishing an old Kindergarten building with minimal environmental impact - Croatia","https://circabc.europa.eu/ui/group/44278090-3fae-4515-bcc2-44fd57c1d0d1/library/f5bc33f6-733a-4a0b-94b6-296a0f5bc184/details","Refurbishing an old Kindergarten building with minimal environmental impact - Croatia","Office design/construction management","Market approach"]
["EU-143","Procuring innovative energy efficiency solutions for educational buildings - Germany","https://circabc.europa.eu/ui/group/44278090-3fae-4515-bcc2-44fd57c1d0d1/library/8d6d9a2e-29ac-4117-8baf-00e317105e96/details","Procuring innovative energy efficiency solutions for educational buildings - Germany","Office design/construction management","Market approach"]
["EU-144","Incentivising energy use improvements in sports centres - Spain","https://circabc.europa.eu/ui/group/44278090-3fae-4515-bcc2-44fd57c1d0d1/library/11588330-a358-4356-9362-2964f2ee1886/details","Incentivising energy use improvements in sports centres - Spain","Electricity","Monitoring"]
["EU-145","Building a green ‘Flora’ Exposition Centre in Burgas - Bulgaria","https://circabc.europa.eu/ui/group/44278090-3fae-4515-bcc2-44fd57c1d0d1/library/66922893-f2bf-473f-8aab-40d29d2ab773/details","Building a green ‘Flora’ Exposition Centre in Burgas - Bulgaria","Buildings","Innovative approach"]
["EU-146","Using Total Cost of Ownership to save on lighting costs - Denmark","https://circabc.europa.eu/ui/group/44278090-3fae-4515-bcc2-44fd57c1d0d1/library/c8b65366-e811-40db-b5bd-7f75e9c24dce/details","Using Total Cost of Ownership to save on lighting costs - Denmark","Indoor lighting","Innovative approach"]
["EU-147","Innovative lighting procurement for London’s Underground network - UK","https://circabc.europa.eu/ui/group/44278090-3fae-4515-bcc2-44fd57c1d0d1/library/f9e86194-5a5c-4033-9527-9922a1c86787/details","Innovative lighting procurement for London’s Underground network - UK","Indoor lighting","Market approach"]
["EU-149","Sustainable Procurement Plan 2021-2024 from the Province of Zeeland - Netherlands","https://circabc.europa.eu/ui/group/44278090-3fae-4515-bcc2-44fd57c1d0d1/library/dee12bd0-7e7a-4b72-81d1-b9f8abd79af1/details",{"$f":"HYPERLINK(C158,B158)","v":"Sustainable Procurement Plan 2021-2024 from the Province of Zeeland - Netherlands"},"Implementing GPP policies","Policy, Knowledge transfer, Collaboration"]
["EU-150","Sustainability Strategy 2013 – 2016 in Denmark","https://circabc.europa.eu/ui/group/44278090-3fae-4515-bcc2-44fd57c1d0d1/library/24f55b8f-c7e2-419d-8310-e45f20061040/details","Sustainability Strategy 2013 – 2016 in Denmark","Implementing GPP policies","Policy"]
["EU-151","Strategy and approach to SPP in the Municipality of Copenhagen - Denmark","https://circabc.europa.eu/ui/group/44278090-3fae-4515-bcc2-44fd57c1d0d1/library/d6e4219f-12e1-449d-aba7-b1f120049e49/details","Strategy and approach to SPP in the Municipality of Copenhagen - Denmark","Implementing GPP policies","Policy, Partnerships, Supportive management, Political support"]
["EU-152","Networking for a common goal, a winning strategy to spread the GPP principles - Italy","https://circabc.europa.eu/ui/group/44278090-3fae-4515-bcc2-44fd57c1d0d1/library/b661dd95-a2cd-40cd-823e-8a0806e749f8/details","Networking for a common goal, a winning strategy to spread the GPP principles - Italy","Implementing GPP policies","Promotions"]
["EU-153","Greening public procurement in the Basque Country - Spain","https://circabc.europa.eu/ui/group/44278090-3fae-4515-bcc2-44fd57c1d0d1/library/58285329-268d-4e5b-8ee6-17fd088b3c52/details","Greening public procurement in the Basque Country - Spain","Implementing GPP policies","Policy, Monitoring, Environmental indicators"]
["EU-154","Reducing emissions produced through construction - Norway","https://circabc.europa.eu/ui/group/44278090-3fae-4515-bcc2-44fd57c1d0d1/library/774bfc72-a60b-41b9-b735-3431f36397af/details","Reducing emissions produced through construction - Norway","Office design/construction management","Collaboration"]
["EU-155","Wholesaler of sustainable food for schools and elderly care homes - Sweden","https://circabc.europa.eu/ui/group/44278090-3fae-4515-bcc2-44fd57c1d0d1/library/0ed4a1b8-f9a1-49fb-80ab-c9fb6586ad7a/details","Wholesaler of sustainable food for schools and elderly care homes - Sweden","Food and catering service","Eco labels, Monitoring, Training, GPP tools"]
["EU-156","Sustainable school meals - Scotland","https://circabc.europa.eu/ui/group/44278090-3fae-4515-bcc2-44fd57c1d0d1/library/d0522bf4-7d2c-4fe2-96e0-f67a68274bb2/details","Sustainable school meals - Scotland","Food and catering service","Market approach, Policy"]
["EU-157","Sustainable food procurement for schools in Rome - Italy","https://circabc.europa.eu/ui/group/44278090-3fae-4515-bcc2-44fd57c1d0d1/library/200ca623-e57f-46e2-be33-e6e26f50fd1a/details","Sustainable food procurement for schools in Rome - Italy","Food and catering service","Monitoring"]
["EU-158","Serving more organic and nutritionally-balanced food in Munich’s schools - Germany","https://circabc.europa.eu/ui/group/44278090-3fae-4515-bcc2-44fd57c1d0d1/library/907aa3a7-128c-4842-824a-51827c9e1df3/details","Serving more organic and nutritionally-balanced food in Munich’s schools - Germany","Food and catering service","Collaboration, Training"]
["EU-159","Procurement of catering services and organic food for school canteens - France","https://circabc.europa.eu/ui/group/44278090-3fae-4515-bcc2-44fd57c1d0d1/library/0316a481-dfb2-420a-a426-9a733f5a637c/details","Procurement of catering services and organic food for school canteens - France","Food and catering service","Feedback, GPP tools, Market approach"]
["EU-160","Preparation and delivery of healthy and sustainable school meals - Belgium","https://circabc.europa.eu/ui/group/44278090-3fae-4515-bcc2-44fd57c1d0d1/library/f8288567-a6f0-4fac-a2d6-24bb39860ce2/details","Preparation and delivery of healthy and sustainable school meals - Belgium","Food and catering service","Training"]
["EU-161","People centered, low carbon healthcare catering solution - UK","https://circabc.europa.eu/ui/group/44278090-3fae-4515-bcc2-44fd57c1d0d1/library/4f87ccde-a616-4973-92d5-86246aff1c66/details","People centered, low carbon healthcare catering solution - UK","Food and catering service","Collaboration"]
["EU-162","Zero carbon refurbishment in an East England school - UK","https://circabc.europa.eu/ui/group/44278090-3fae-4515-bcc2-44fd57c1d0d1/library/fc6126a2-1af0-4ed3-a286-14a9e4e5664e/details","Zero carbon refurbishment in an East England school - UK","Electricity","Collaboration, Monitoring"]
["EU-163","Using recycled concrete in the construction of new buildings - Germany","https://circabc.europa.eu/ui/group/44278090-3fae-4515-bcc2-44fd57c1d0d1/library/afbe64e7-46a0-4beb-8083-81041cbbeb42/details","Using recycled concrete in the construction of new buildings - Germany","Buildings","Pilot project"]
["EU-164","Using LCA and CO2 - Netherlands","https://circabc.europa.eu/ui/group/44278090-3fae-4515-bcc2-44fd57c1d0d1/library/34c61b76-c076-4f63-a735-e17f21b03a1a/details","Using LCA and CO2 - Netherlands","Buildings","GPP tools, Environmental indicators"]
["EU-165","Urban regeneration of the Vila d’Este neighbourhood - Portugal","https://circabc.europa.eu/ui/group/44278090-3fae-4515-bcc2-44fd57c1d0d1/library/9ebcd08e-a191-434c-a431-ca594818a230/details","Urban regeneration of the Vila d’Este neighbourhood - Portugal","Buildings","GPP tools, Monitoring"]
["EU-166","Sustainable and circular building - Belgium ","https://circabc.europa.eu/ui/group/44278090-3fae-4515-bcc2-44fd57c1d0d1/library/da8a7686-5269-44b1-b897-a343cbff6f8e/details","Sustainable and circular building - Belgium ","Buildings","GPP tools"]
["EU-167","Supply of sustainable concrete at the London Olympics - UK","https://circabc.europa.eu/ui/group/44278090-3fae-4515-bcc2-44fd57c1d0d1/library/0c3aeabb-6bb5-4e3a-9248-40ca5b983b8f/details","Supply of sustainable concrete at the London Olympics - UK","Buildings","Market approach, Joint framework"]
["EU-168","Setting reclamation targets in a redevelopment tender - France","https://circabc.europa.eu/ui/group/44278090-3fae-4515-bcc2-44fd57c1d0d1/library/16ef7ade-3d2d-4e1a-9686-110153f1249f/details","Setting reclamation targets in a redevelopment tender - France","Buildings","Auditing, Market approach, Incentivisation, Monitoring"]
["EU-169","Renovating the façade of an unused warehouse - Spain","https://circabc.europa.eu/ui/group/44278090-3fae-4515-bcc2-44fd57c1d0d1/library/9cb987a8-59d8-444a-9d0b-25ce8ba63aac/details","Renovating the façade of an unused warehouse - Spain","Buildings","Innovative approach, Market approach"]
["EU-170","Promoting life-cycle thinking in construction - Finland","https://circabc.europa.eu/ui/group/44278090-3fae-4515-bcc2-44fd57c1d0d1/library/e49cd912-1e79-457d-b3bc-679132f6c85b/details","Promoting life-cycle thinking in construction - Finland","Buildings","Innovatice approach"]
["EU-171","Procuring the first Nordic Swan ecolabelled pre-school in Finland","https://procuraplus.org/fileadmin/user_upload/Procuraplus_case_study_Hyvink%C3%A4%C3%A4.pdf","Procuring the first Nordic Swan ecolabelled pre-school in Finland","Buildings","Eco labelss, Market approach"]
["EU-172","Combining procurement models for green and healthy buildings - Czech Republic","https://sustainable-procurement.org/fileadmin/templates/sp_platform/lib/sp_platform_resources//tools/push_resource_file.php?uid=f589f172","Combining procurement models for green and healthy buildings - Czech Republic","Buildings","Feedback, Market approach"]
["EU-173","Environmentally and socially friendly cleaning services - Malta","https://sustainable-procurement.org/fileadmin/templates/sp_platform/lib/sp_platform_resources//tools/push_resource_file.php?uid=e5a3f6d2","Environmentally and socially friendly cleaning services - Malta","Cleaning products and services","Monitoring, Auditing, Training"]
["EU-174","Procuring medical consumables by tackling social considerations along the supply chain - Norway","https://circabc.europa.eu/ui/group/44278090-3fae-4515-bcc2-44fd57c1d0d1/library/9da59a2a-7170-493f-a514-9cd317bca7bd/details",{"$f":"HYPERLINK(C183,B183)","v":"Procuring medical consumables by tackling social considerations along the supply chain - Norway"},"Waste management and collection","Social criteria"]
["EU-175","Provision of comprehensive care for homeless people in Valladolid - Spain","https://green-business.ec.europa.eu/green-public-procurement/good-practice-library/provision-comprehensive-care-homeless-people_en","Provision of comprehensive care for homeless people in Valladolid - Spain","Others","Monitoring"]
["EU-176","Sustainability and circularity as a starting point for ICT procurement Contracting authority - Netherland","https://green-business.ec.europa.eu/green-public-procurement/good-practice-library/sustainability-and-circularity-starting-point-ict-procurement-contracting-authority_en","Sustainability and circularity as a starting point for ICT procurement Contracting authority - Netherland","Office IT equipment","Market approach"]
["EU-177","Supplying reused and refurbished furniture to Niort City Hall - France","https://green-business.ec.europa.eu/green-public-procurement/good-practice-library/waste-workspace-supplying-reused-and-refurbished-furniture-niort-city-hall_en","Supplying reused and refurbished furniture to Niort City Hall - France","Furniture","Monitoring, Legal mandate"]
["EU-178","Developing a monitoring system for GPP in Rome - Italy","https://procuraplus.org/fileadmin/user_upload/Procura__case_studies/Procuraplus_case_study_Rome.pdf","Developing a monitoring system for GPP in Rome - Italy","Others","Monitoring"]
["EU-179","InDemand, a new demand-driven cocreation model that helps to procure innovation in public organizations - Spain","https://procuraplus.org/fileadmin/user_upload/Procuraplus_case_study_Murcia_Health_Service.pdf","InDemand, a new demand-driven cocreation model that helps to procure innovation in public organizations - Spain","Others","Innovative approach"]
["EU-182","Residential building worth 23 million euros - Finland","https://lifelevels.eu/wp-content/uploads/2022/03/Life-Levels-Best-Practice-Guide-GPP_FINAL_compressed-1.pdf","Residential building worth 23 million euros - Finland","Buildings","Environmental indicators"]
["EU-183","New Gym for the school in Oliviery in Pesavo - Italy","https://lifelevels.eu/wp-content/uploads/2022/03/Life-Levels-Best-Practice-Guide-GPP_FINAL_compressed-1.pdf","New Gym for the school in Oliviery in Pesavo - Italy","Buildings","Environmental indicators, GPP tools"]
["EU-184","Sustainable model village - Germany","https://lifelevels.eu/wp-content/uploads/2022/03/Life-Levels-Best-Practice-Guide-GPP_FINAL_compressed-1.pdf","Sustainable model village - Germany","Buildings","Environmental indicators, GPP tools"]
["EU-185","Getting creative about training and capacity building  - France","https://www.ellenmacarthurfoundation.org/circular-public-procurement/case-studies","Getting creative about training and capacity building  - France","Buildings","Training"]
["EU-188","A low carbon, circular economy approach to concrete procurement - Switzerland","https://sustainable-procurement.org/fileadmin/templates/sp_platform/lib/sp_platform_resources/tools/push_resource_file.php?uid=aa4116ed","A low carbon, circular economy approach to concrete procurement - Switzerland","Textiles","Partnerships, Market approach"]
["EU-189","Sustainable procurement of workwear in Zürich - Switzerland","https://circabc.europa.eu/ui/group/44278090-3fae-4515-bcc2-44fd57c1d0d1/library/123852a5-76e8-40e3-a924-9780011e4fc6/details","Sustainable procurement of workwear in Zürich - Switzerland","Textiles","Collaboration, Market approach, Pilot project"]
["EU-190","Purchasing copy, printing and scanning services in Zurich - Switzerland","https://circabc.europa.eu/ui/group/44278090-3fae-4515-bcc2-44fd57c1d0d1/library/54f96a1c-82ec-4949-8ffb-46efdcb78a21/details","Purchasing copy, printing and scanning services in Zurich - Switzerland","Copying and graphic paper","Standardisation"]
["EU-191","Sustainable, climate friendly catering services - Switzerland","https://circabc.europa.eu/ui/group/44278090-3fae-4515-bcc2-44fd57c1d0d1/library/b36eb77e-9fb4-4867-8915-6fb6b038c57f/details","Sustainable, climate friendly catering services - Switzerland","Food and catering service","Communication, Monitoring, Collaboration"]
["EU-192","Action Plan by Zegale Planning Region - Latvia","https://projects2014-2020.interregeurope.eu/fileadmin/user_upload/tx_tevprojects/library/file_1584708071.pdf","Action Plan by Zegale Planning Region - Latvia","Implementing GPP policies","Awareness, Policy, Training"]
["EU-193","Action Plan for Lombardy Region, green purchases - Italy","https://projects2014-2020.interregeurope.eu/fileadmin/user_upload/tx_tevprojects/library/file_1590556410.pdf",{"$f":"HYPERLINK(C198,B198)","v":"Action Plan for Lombardy Region, green purchases - Italy"},"Implementing GPP policies","Normative, Centralised procurement, Policy, Training, Market approach, Dissemination, Supportive management, Monitoring"]
["EU-194","Action Plan for Andalusia - Spain","https://projects2014-2020.interregeurope.eu/fileadmin/user_upload/tx_tevprojects/library/file_1585890686.pdf",{"$f":"HYPERLINK(C199,B199)","v":"Action Plan for Andalusia - Spain"},"Implementing GPP policies","Policy, Centralised procurement, Monitoring, GPP tools, Training, Kowledge transfer, Legal mandate"]
["EU-195","Action Plan concerning the Flemish public procurement plan - Belgium","https://projects2014-2020.interregeurope.eu/fileadmin/user_upload/tx_tevprojects/library/file_1585892093.pdf","Action Plan concerning the Flemish public procurement plan - Belgium","Implementing GPP policies","Policy, Supportive management, Training, Knowledge transfer, E platforms"]
["EU-196","Action plan with measures for promoting the inclusion of green criteria in public procurement - Bulgaria","https://projects2014-2020.interregeurope.eu/fileadmin/user_upload/tx_tevprojects/library/file_1585804560.pdf","Action plan with measures for promoting the inclusion of green criteria in public procurement - Bulgaria","Implementing GPP policies","GPP tools, Supportive management, Expert involvement, Training, Incentivisation"]
["EU-197","Regional action plan for Lodzkie region -Poland","https://projects2014-2020.interregeurope.eu/fileadmin/user_upload/tx_tevprojects/library/file_1589261693.pdf","Regional action plan for Lodzkie region -Poland","Implementing GPP policies","Policy, Knowledge transfer, Training"]
["EU-198","Action plan for Malta","https://projects2014-2020.interregeurope.eu/fileadmin/user_upload/tx_tevprojects/library/file_1584706432.pdf","Action plan for Malta","Implementing GPP policies","Policy, Training, GPP tools, Environmental indicators"]
["EU-199","Action plan for the region of western Greece - Greece","https://projects2014-2020.interregeurope.eu/fileadmin/user_upload/tx_tevprojects/library/file_1584707866.pdf","Action plan for the region of western Greece - Greece","Implementing GPP policies","GPP tools, Technology transformation, Legal mandate"]
["NEU-2","Energy savings lightings at the Department of Health and Ageing - Australia","https://www.dcceew.gov.au/sites/default/files/documents/sustainable-procurement-2013.pdf",{"$f":"HYPERLINK(C205,B205)","v":"Energy savings lightings at the Department of Health and Ageing - Australia"},"Indoor lighting","Technology transformation"]
["NEU-8","ECO-Buy - Local action to support GPP in\nAustralia ","https://www.apec.org/docs/default-source/publications/2013/6/green-public-procurement-in-the-asia-pacific-region-challenges-and-opportunities-for-green-growth-an/toc/annex-d---best-practices-on-green-public-procurement-factsheet.pdf?sfvrsn=402e224f_1","ECO-Buy - Local action to support GPP in\nAustralia ","Implementing GPP policies","Incentivisation, Training, Monitoring, GPP tools"]
["NEU-9","Promotion of Green Public Procurement and online purchasing in Korea","https://www.apec.org/docs/default-source/publications/2013/6/green-public-procurement-in-the-asia-pacific-region-challenges-and-opportunities-for-green-growth-an/toc/annex-d---best-practices-on-green-public-procurement-factsheet.pdf?sfvrsn=402e224f_1","Promotion of Green Public Procurement and online purchasing in Korea","Implementing GPP policies","Awareness, Incentivisation, Eco labels, E platforms"]
["NEU-10","Information technology devices procurement in Canada",null,"Information technology devices procurement in Canada","Office IT equipment","Policy, Monitoring, Training"]
["NEU-11","Green policy in vehicles procurement in New Zealand","https://www.apec.org/docs/default-source/publications/2013/6/green-public-procurement-in-the-asia-pacific-region-challenges-and-opportunities-for-green-growth-an/toc/annex-d---best-practices-on-green-public-procurement-factsheet.pdf?sfvrsn=402e224f_2","Green policy in vehicles procurement in New Zealand","Implementing GPP policies","Policy, Legal mandate, Political support, Training"]
["NEU-14","Improving Supplier Practices Through the Procurement of Green Flexographic Ink for Packaging by Siam Cement Group -Thailand","https://www.oneplanetnetwork.org/sites/default/files/case_studies_140317_web.pdf",{"$f":"HYPERLINK(C210,B210)","v":"Improving Supplier Practices Through the Procurement of Green Flexographic Ink for Packaging by Siam Cement Group -Thailand"},"Printing products and services","Expert involvement, Incetivisation, Auditing, Training"]
["NEU-15","The Procurement of Fire Extinguishers by Central Ministries in Japan","https://www.oneplanetnetwork.org/sites/default/files/case_studies_140317_web.pdf","The Procurement of Fire Extinguishers by Central Ministries in Japan","Others","Policy, Eco labelss, Awareness, Market readiness, Legal mandate"]
["NEU-16","The Procurement of “Green” School Textbooks by the Local Provincial Bureau of Press, Publication, Radio, Film and Television Administration of China","https://www.oneplanetnetwork.org/sites/default/files/case_studies_140317_web.pdf","The Procurement of “Green” School Textbooks by the Local Provincial Bureau of Press, Publication, Radio, Film and Television Administration of China","Printing products and services","Collaboration, Awareness"]
["NEU-17","Implementing Legal mandate framework for GPP- Korea","https://www.oecd.org/gov/ethics/Going_Green_Best_Practices_for_Sustainable_Procurement.pdf","Implementing Legal mandate framework for GPP- Korea","Implementing GPP policies","Legal mandate, Policy"]
["NEU-18","UCLA Health hero ensures PPE supply during pandemic & beyond - USA","https://noharm.medium.com/ucla-health-hero-ensures-ppe-supply-during-pandemic-beyond-c1ab3e448c66","UCLA Health hero ensures PPE supply during pandemic & beyond - USA","Textiles","Pilot project"]
["NEU-19","How Kaiser Permanente keeps 70M square feet of flooring free of toxic chemicals - USA","https://noharm.medium.com/healthyflooringatkaiserpermanente-21661f86af3e","How Kaiser Permanente keeps 70M square feet of flooring free of toxic chemicals - USA","Others","Market readiness, Market approach, Policy, E platforms"]
["NEU-20","Multi-region pilot brings regionally-grown, plant-based proteins to patient menus - USA","https://noharm.medium.com/multi-region-pilot-brings-regionally-grown-plant-based-proteins-to-patient-menus-3aff7e92ce18","Multi-region pilot brings regionally-grown, plant-based proteins to patient menus - USA","Food and catering service","Collaboration, Expert involvement "]
["NEU-21","Custodial Supplies Management - USA","https://www.portland.gov/procurement/sustainable-procurement-program/documents/green-purchasing-case-study-custodial/download","Custodial Supplies Management - USA","Cleaning products and services","Supportive management"]
["NEU-22","Green Purchasing of office furniture - USA","https://www.portland.gov/procurement/sustainable-procurement-program/documents/green-purchasing-case-study-office-furniture/download","Green Purchasing of office furniture - USA","Furniture","Environmental indicators, Collaboration, Market approach"]
["NEU-23","Warm mix Asphalt - USA","https://www.portland.gov/procurement/sustainable-procurement-program/documents/green-purchasing-case-study-office-furniture/download","Warm mix Asphalt - USA","Road design,construction & maintenance","Innovative approach"]
["NEU-24","Low Carbon Concrete Sidewalk Pilot","https://www.portland.gov/omf/brfs/procurement/sustainable-procurement-program/documents/low-carbon-concrete-sidewalk-pilot/download","Low Carbon Concrete Sidewalk Pilot","Road design,construction & maintenance","Pilot project, Innovative approach"]
["NEU-25","Low-Carbon concrete pilot project","https://www.portland.gov/procurement/sustainable-procurement-program/documents/low-carbon-concrete-pole-footings-pilot/download","Low-Carbon concrete pilot project","Road design,construction & maintenance","Pilot project, Innovative approach, Market approach"]
["NEU-26","Type 1L + Slag Mixes for Sidewalk & Pavement Applications - USA","https://www.portland.gov/sites/default/files/2022/cop-lowcarbon-concrete-1l-case-study.pdf","Type 1L + Slag Mixes for Sidewalk & Pavement Applications - USA","Road design,construction & maintenance","Pilot project, Innovative approach"]
["NEU-27","Successful use of the EPEAT ecolabel in procurement - USA","https://globalelectronicscouncil.org/wp-content/uploads/Kaiser_Permanente_EPEAT_case_study-2.pdf","Successful use of the EPEAT ecolabel in procurement - USA","Office IT equipment","Innovative approach"]
["NEU-28","Procurement of ballpoint pens - Japan","https://www.oneplanetnetwork.org/sites/default/files/case_studies_140317_web.pdf","Procurement of ballpoint pens - Japan","Office supplies","Eco labelss, Monitoring, Legal mandate, Market readiness, Dissemination, awareness"]
["NEU-29","The Procurement of LED Lights by Korea’s National Health Insurance Service","https://www.oneplanetnetwork.org/sites/default/files/case_studies_140317_web.pdf","The Procurement of LED Lights by Korea’s National Health Insurance Service","Indoor lighting","Policy, Legal mandate, Eco labels, E platforms, Technology transformation"]
["NEU-30","The Procurement of Paints by Korea Land & Housing Corporation - Korea","https://www.oneplanetnetwork.org/sites/default/files/case_studies_140317_web.pdf","The Procurement of Paints by Korea Land & Housing Corporation - Korea","Buildings","Eco labels, GPP database, Market readiness, Market approach, Incentivisation, Monitoring"]
["NEU-31","Buy Clean act in California - USA","https://www.thirdway.org/memo/lessons-learned-from-california-buy-clean","Buy Clean act in California - USA","Implementing GPP policies","Policy, Incentivisation, Joint framework, Training"]
["NEU-32","Award system for GPP practinioners and departments - USA","https://www.sfenvironment.org/media/14086/download?inline","Award system for GPP practinioners and departments - USA","Others","Appraisal"]
["NEU-34","Seattle City Council passes legislation to boost public EV charging stations- USA","https://council.seattle.gov/2023/08/15/seattle-city-council-passes-legislation-to-boost-public-ev-charging-stations/","Seattle City Council passes legislation to boost public EV charging stations- USA","Implementing GPP policies","Legal, Technology transformation"]
["NEU-35","Food waste to bio solids - USA","https://www.waste360.com/anaerobic-digestion/los-angeles-to-combine-food-waste-biosolids-for-massive-energy-project","Food waste to bio solids - USA","Waste management and collection","Innovatice approach"]
["NEU-36","IT Hardware and Addresses the Digital Divide - Canada","https://www.reeveconsulting.com/wp-content/uploads/2024/03/CCSP-2023-Annual-Report_The-State-of-Sustainable-Public-Procurement-in-Canada.pdf","IT Hardware and Addresses the Digital Divide - Canada","Office IT equipment","Collaboration, Supply chain, Partnerships"]
["NEU-39","Policy to practice - New Zealand","https://www.reeveconsulting.com/wp-content/uploads/2024/03/CCSP-2023-Annual-Report_The-State-of-Sustainable-Public-Procurement-in-Canada.pdf","Policy to practice - New Zealand","Implementing GPP policies","Policy, Innovative approach"]
["NEU-42","City of Ottawa Takes a Step on Social Value with Crossing Guard Services - Canada","https://www.reeveconsulting.com/wp-content/uploads/2024/03/CCSP-2023-Annual-Report_The-State-of-Sustainable-Public-Procurement-in-Canada.pdf",{"$f":"HYPERLINK(C233,B233)","v":"City of Ottawa Takes a Step on Social Value with Crossing Guard Services - Canada"},"Others","GPP tools, Social criteria, Collaboration"]
["NEU-43","Walks the Talk on Sustainable Food Services - Canada","https://www.reeveconsulting.com/wp-content/uploads/2024/03/CCSP-2023-Annual-Report_The-State-of-Sustainable-Public-Procurement-in-Canada.pdf",{"$f":"HYPERLINK(C234,B234)","v":"Walks the Talk on Sustainable Food Services - Canada"},"Food and catering service","Collaboration, Supportive management, Communication"]
["NEU-44","City of Saskatoon Manages 50% of the Water with 100% of the Fun at Local Waterpark - Canadda","https://www.reeveconsulting.com/wp-content/uploads/2024/03/CCSP-2023-Annual-Report_The-State-of-Sustainable-Public-Procurement-in-Canada.pdf","City of Saskatoon Manages 50% of the Water with 100% of the Fun at Local Waterpark - Canadda","Others","Communication, Collaboration"]
["NEU-45","City of Winnipeg Fights Homelessness with Local Social Enterprise - Canada","https://www.reeveconsulting.com/wp-content/uploads/2024/03/CCSP-2023-Annual-Report_The-State-of-Sustainable-Public-Procurement-in-Canada.pdf","City of Winnipeg Fights Homelessness with Local Social Enterprise - Canada","Others","Social criteria, Training, Communication"]
["NEU-46","City of Mississauga Creates Energy from Dog Waste Diversion - Canada","https://www.reeveconsulting.com/wp-content/uploads/2024/03/CCSP-2023-Annual-Report_The-State-of-Sustainable-Public-Procurement-in-Canada.pdf","City of Mississauga Creates Energy from Dog Waste Diversion - Canada","Waste management and collection","Pilot project, Collaboration, Innovative approach, Feedback"]
["NEU-47","City of Charlottetown Seeks Corporate Sustainability Leadership from Transit Vendors - Canada","https://www.reeveconsulting.com/wp-content/uploads/2024/03/CCSP-2023-Annual-Report_The-State-of-Sustainable-Public-Procurement-in-Canada.pdf","City of Charlottetown Seeks Corporate Sustainability Leadership from Transit Vendors - Canada","Transport","GPP tools, Collaboration"]
["NEU-48","Sheridan College Implements Streamlined Procurement Process for Local Suppliers- Canada","https://www.reeveconsulting.com/wp-content/uploads/2024/03/CCSP-2023-Annual-Report_The-State-of-Sustainable-Public-Procurement-in-Canada.pdf","Sheridan College Implements Streamlined Procurement Process for Local Suppliers- Canada","Implementing GPP policies","Market approach, Awareness, Training, Expert involvement "]
["NEU-49","City of Kelowna Embeds Climate Mitigation Principles within Parking Services - Canada","https://www.reeveconsulting.com/wp-content/uploads/2024/03/CCSP-2023-Annual-Report_The-State-of-Sustainable-Public-Procurement-in-Canada.pdf","City of Kelowna Embeds Climate Mitigation Principles within Parking Services - Canada","Transport","Innovative approach, Energy efficiency enhancement, Technology transformation"]
["NEU-50","BCIT Reduces GHG Emissions by Transitioning to Sugar Sheets - Canada","https://www.reeveconsulting.com/wp-content/uploads/2021/04/Annual-State-of-the-Nation-Report-on-Sustainable-Public-Procurement-in-Canada_CCSP-Reeve-Consulting.pdf","BCIT Reduces GHG Emissions by Transitioning to Sugar Sheets - Canada","Copying and graphic paper"]

{"sheet":"References","index":4,"n_rows":20,"n_cols":2,"rows_kept":20,"cut":false,"hidden":false,"merged":[]}
["References: "]
[1,"Interreg Europe. (Retrieved October 10, 2024, from https://www.interregeurope.eu/policy-solutions/good-practices)."]
[2,"https://www.biobasedconsultancy.com/uploads/files/InnProBio_Goodpracticecase_Skane.pdf"]
[3,"Circabc. (Retrieved June 06, 2024, from https://circabc.europa.eu/ui/group/44278090-3fae-4515-bcc2-44fd57c1d0d1/library/1294d641-9e8c-482d-a8ff-fdde05dffd48"]
[4,"Böhlin, J. (n.d.). Environmentally-friendly office IT equipment in Stockholm [Case study]. Sustainable Procurement Platform. Retrieved June 13, 2024, from https://sustainable-procurement.org/fileadmin/templates/sp_platform/lib/sp_platform_resources/tools/push_resource_file.php?uid=714a2195"]
[5,"Contreras, L. (n.d.). InDemand: A new demand-driven co-creation model that helps to procure innovation in public organizations [Case study]. Procura+ website. Retrieved December 19, 2024, from https://procuraplus.org/fileadmin/user_upload/Procuraplus_case_study_Murcia_Health_Service.pdf"]
[6,"Ellen MacArthur Foundation. (n.d.). Circular public procurement: Case studies from cities [Report]. Ellen MacArthur Foundation. Retrieved April 12, 2024, from https://www.ellenmacarthurfoundation.org/circular-public-procurement/case-studies"]
[7,"DSEWPC. (2013). Sustainable procurement in the Australian government report 2013 [Report]. Retrieved June 7, 2024, from https://www.dcceew.gov.au/sites/default/files/documents/sustainable-procurement-2013.pdf"]
[8,"\nHere’s the APA reference for the report:\n\nAPEC Committee on Trade and Investment. (2023, April). Green public procurement in the Asia Pacific region: Challenges and opportunities for green growth and trade [Report]. Retrieved from https://www.apec.org/docs/default-source/publications/2013/6/green-public-procurement-in-the-asia-pacific-region-challenges-and-opportunities-for-green-growth-an/toc/green-public-procurement.pdf?sfvrsn=8ef3588b_1"]
[9,"Green Purchasing Network Malaysia. (2017). A sampling of successes in green public procurement [Report]. Retrieved from https://www.oneplanetnetwork.org/sites/default/files/case_studies_140317_web.pdf\n"]
[10,"OECD. (n.d.). Anti-corruption and integrity. Retrieved April 9, 2024, from https://www.oecd.org/en/topics/anti-corruption-and-integrity.html#related-policy-issues"]
[11,"Healthcare Without Harm. (2022). Multi-region pilot brings regionally grown, plant-based proteins to patient menus. Retrieved from https://noharm.medium.com/multi-region-pilot-brings-regionally-grown-plant-based-proteins-to-patient-menus-3aff7e92ce18"]
[12,"Foreman, S. (2012). Custodial supplies management [Case study]. Sustainable Purchasing Leadership Council. Retrieved from https://www.portland.gov/procurement/sustainable-procurement-program/documents/green-purchasing-case-study-custodial/download"]
[13,"Foreman, S. (2018, December). City of Portland green purchasing case study: Office furniture [Case study]. Retrieved from https://www.portland.gov/procurement/sustainable-procurement-program/documents/green-purchasing-case-study-office-furniture/download"]
[14,"Cox, R., & Milko, J. (2022, July 25). Lessons learned from California Buy Clean. Retrieved from https://www.thirdway.org/memo/lessons-learned-from-california-buy-clean"]
[15,"Karidis, A. (2019, March 11). Los Angeles to combine food waste, biosolids for massive energy project. Retrieved from https://www.waste360.com/anaerobic-digestion/los-angeles-to-combine-food-waste-biosolids-for-massive-energy-project"]
[16,"CCSP. (2023). The state of sustainable public procurement in Canada [Report]. Retrieved from https://www.reeveconsulting.com/wp-content/uploads/2024/03/CCSP-2023-Annual-Report_The-State-of-Sustainable-Public-Procurement-in-Canada.pdf\n"]
[17,"Kennaeally, J. (2023, November 30). Case studies from EPA [Presentation slides, slides 5-17]. Presented at the GPP in practice conference, Dublin, Ireland."]
[18,"Sugrue, A. (2023, November 30). Cork County Council’s Pilot Project on Green Public Procurement in Roads Maintenance [Presentation slides, slides 5-12]. Presented at the GPP in practice conference, Dublin, Ireland."]
[19,"McBride, C. (2023, November 30). Green Procurement Case Studies [Presentation slides, slides 7-11]. Presented at the GPP in practice conference, Dublin, Ireland."]